[Event "*** SCC Grand Prix: Titled Tuesday Blitz"]
[Site "Chess.com"]
[Date "2020.06.23"]
[Round "10"]
[White "chipmunknau"]
[Black "Elegance_Riks"]
[Result "0-1"]
[WhiteElo "2598"]
[BlackElo "2599"]
[TimeControl "180+1"]
[EndTime "11:57:17 PDT"]
[Termination "Elegance_Riks won by resignation"]

1. Nf3 {[%clk 0:03:00.9]} 1... Nf6 {[%clk 0:03:00.3]} 2. g3 {[%clk 0:03:00.8]}
2... g6 {[%clk 0:03:00.8]} 3. Bg2 {[%clk 0:03:01.3]} 3... Bg7 {[%clk 0:03:01.3]}
4. O-O {[%clk 0:03:02.2]} 4... O-O {[%clk 0:03:01.7]} 5. c4 {[%clk 0:03:02.8]}
5... d6 {[%clk 0:03:02]} 6. Nc3 {[%clk 0:03:03.2]} 6... e5 {[%clk 0:03:01.4]} 7.
Rb1 {[%clk 0:03:03.1]} 7... a5 {[%clk 0:03:00.6]} 8. a3 {[%clk 0:03:03.1]} 8...
h6 {[%clk 0:03:00.7]} 9. d3 {[%clk 0:03:03.1]} 9... Be6 {[%clk 0:02:54.4]} 10.
b4 {[%clk 0:03:01]} 10... axb4 {[%clk 0:02:54.6]} 11. axb4 {[%clk 0:03:01.9]}
11... Nbd7 {[%clk 0:02:52.8]} 12. Nd2 {[%clk 0:02:58.5]} 12... c6 {[%clk
0:02:52.9]} 13. Bb2 {[%clk 0:02:58.7]} 13... d5 {[%clk 0:02:47.8]} 14. Qc2
{[%clk 0:02:58.3]} 14... Qe7 {[%clk 0:02:44.7]} 15. c5 {[%clk 0:02:42.9]} 15...
h5 {[%clk 0:02:43.3]} 16. Ra1 {[%clk 0:02:30]} 16... h4 {[%clk 0:02:40]} 17. Nf3
{[%clk 0:02:29.8]} 17... h3 {[%clk 0:02:27.4]} 18. Bh1 {[%clk 0:02:29]} 18...
Ng4 {[%clk 0:02:27.5]} 19. e4 {[%clk 0:02:20.2]} 19... d4 {[%clk 0:02:23.1]} 20.
Rxa8 {[%clk 0:02:11.2]} 20... Rxa8 {[%clk 0:02:21.5]} 21. Nb1 {[%clk 0:02:11.4]}
21... f5 {[%clk 0:02:15.8]} 22. exf5 {[%clk 0:02:05.5]} 22... gxf5 {[%clk
0:02:16.7]} 23. Nbd2 {[%clk 0:02:04.6]} 23... Bd5 {[%clk 0:02:08.2]} 24. Re1
{[%clk 0:02:04.2]} 24... Qf6 {[%clk 0:01:51.5]} 25. Nc4 {[%clk 0:02:01.8]} 25...
e4 {[%clk 0:01:41.5]} 26. Bxd4 {[%clk 0:01:28.4]} 26... Qxd4 {[%clk 0:01:40.5]}
27. Nxd4 {[%clk 0:01:29.3]} 27... Bxd4 {[%clk 0:01:40.7]} 28. Ne3 {[%clk
0:01:02.7]} 28... Ra2 {[%clk 0:01:38.4]} 29. Qd1 {[%clk 0:00:59.5]} 29... Rxf2
{[%clk 0:01:20.7]} 30. dxe4 {[%clk 0:00:55.9]} 30... Bxe3 {[%clk 0:01:03.5]} 31.
Rxe3 {[%clk 0:00:44.9]} 31... Nxe3 {[%clk 0:01:03.3]} 32. Qc1 {[%clk 0:00:37.2]}
32... Rf1+ {[%clk 0:00:59.8]} 33. Qxf1 {[%clk 0:00:37]} 33... Nxf1 {[%clk
0:01:00.7]} 34. exd5 {[%clk 0:00:37.6]} 34... Ne3 {[%clk 0:00:50.7]} 35. dxc6
{[%clk 0:00:37.1]} 35... bxc6 {[%clk 0:00:51.1]} 36. Bxc6 {[%clk 0:00:37.9]}
36... Ne5 {[%clk 0:00:51.5]} 37. Bh1 {[%clk 0:00:30]} 37... Kf8 {[%clk
0:00:51.5]} 38. Kf2 {[%clk 0:00:29.1]} 38... N3g4+ {[%clk 0:00:50.3]} 39. Ke2
{[%clk 0:00:25.3]} 39... Ke7 {[%clk 0:00:50.4]} 40. b5 {[%clk 0:00:23.6]} 40...
Nd7 {[%clk 0:00:50.5]} 41. c6 {[%clk 0:00:20.4]} 41... Nb6 {[%clk 0:00:50.8]}
42. Kf3 {[%clk 0:00:20.3]} 42... Nxh2+ {[%clk 0:00:46.4]} 43. Kf4 {[%clk
0:00:20.4]} 43... Ke6 {[%clk 0:00:46]} 44. c7 {[%clk 0:00:17.8]} 44... Ng4
{[%clk 0:00:45.4]} 45. Kg5 {[%clk 0:00:16.2]} 45... h2 {[%clk 0:00:44.3]} 46.
Bb7 {[%clk 0:00:14.7]} 46... Nf2 {[%clk 0:00:42.6]} 47. c8=Q+ {[%clk 0:00:13.4]}
47... Nxc8 {[%clk 0:00:42.5]} 48. Bxc8+ {[%clk 0:00:14.3]} 48... Kd6 {[%clk
0:00:41.7]} 49. Bb7 {[%clk 0:00:15.2]} 49... Ne4+ {[%clk 0:00:41.8]} 50. Kxf5
{[%clk 0:00:12.7]} 50... h1=Q {[%clk 0:00:40.8]} 51. Bxe4 {[%clk 0:00:13.6]}
51... Qf1+ {[%clk 0:00:40.8]} 52. Kg4 {[%clk 0:00:13.3]} 52... Qxb5 {[%clk
0:00:41]} 53. Kf4 {[%clk 0:00:14.2]} 53... Qe5+ {[%clk 0:00:40.7]} 54. Kf3
{[%clk 0:00:14.6]} 54... Ke7 {[%clk 0:00:41.2]} 0-1

[Event "*** SCC Grand Prix: Titled Tuesday Blitz"]
[Site "Chess.com"]
[Date "2020.06.23"]
[Round "10"]
[White "kingofthenil"]
[Black "jlandaw"]
[Result "0-1"]
[WhiteElo "2414"]
[BlackElo "2549"]
[TimeControl "180+1"]
[EndTime "11:57:19 PDT"]
[Termination "jlandaw won on time"]

1. d4 {[%clk 0:03:00.9]} 1... d5 {[%clk 0:02:59.8]} 2. c4 {[%clk 0:03:01.1]}
2... c6 {[%clk 0:03:00]} 3. cxd5 {[%clk 0:03:01.4]} 3... cxd5 {[%clk 0:02:59.4]}
4. Bf4 {[%clk 0:03:02.3]} 4... Nc6 {[%clk 0:02:59.2]} 5. e3 {[%clk 0:03:03.2]}
5... Nf6 {[%clk 0:02:58.9]} 6. Nc3 {[%clk 0:02:54.7]} 6... a6 {[%clk 0:02:58.3]}
7. Be2 {[%clk 0:02:54]} 7... g6 {[%clk 0:02:47.4]} 8. Nf3 {[%clk 0:02:49.7]}
8... Bg7 {[%clk 0:02:46.8]} 9. h3 {[%clk 0:02:49.5]} 9... O-O {[%clk 0:02:46.9]}
10. O-O {[%clk 0:02:49.4]} 10... b5 {[%clk 0:02:40.7]} 11. Rc1 {[%clk
0:02:46.9]} 11... Na5 {[%clk 0:02:37.5]} 12. b3 {[%clk 0:02:14.7]} 12... Bf5
{[%clk 0:02:36.9]} 13. Ne5 {[%clk 0:02:14]} 13... Rc8 {[%clk 0:02:34.2]} 14. a4
{[%clk 0:02:08]} 14... b4 {[%clk 0:02:01.7]} 15. Na2 {[%clk 0:01:35.8]} 15...
Rxc1 {[%clk 0:02:01.4]} 16. Nxc1 {[%clk 0:01:36.7]} 16... Qb6 {[%clk 0:02:01.5]}
17. Bd3 {[%clk 0:01:10]} 17... Bxd3 {[%clk 0:01:49.1]} 18. Ncxd3 {[%clk
0:01:10.9]} 18... Rc8 {[%clk 0:01:44]} 19. Nc5 {[%clk 0:01:08.4]} 19... Ne4
{[%clk 0:01:04.6]} 20. Ned7 {[%clk 0:00:51.3]} 20... Qa7 {[%clk 0:00:58.2]} 21.
Nxe4 {[%clk 0:00:40.4]} 21... dxe4 {[%clk 0:00:53.1]} 22. Nc5 {[%clk 0:00:41.3]}
22... e5 {[%clk 0:00:52.5]} 23. dxe5 {[%clk 0:00:40.8]} 23... Qxc5 {[%clk
0:00:51.3]} 24. Qd7 {[%clk 0:00:37.8]} 24... Nxb3 {[%clk 0:00:47.5]} 25. Rd1
{[%clk 0:00:32.3]} 25... h6 {[%clk 0:00:23.2]} 26. e6 {[%clk 0:00:28.1]} 26...
fxe6 {[%clk 0:00:23.3]} 27. Qxe6+ {[%clk 0:00:27.7]} 27... Kh7 {[%clk 0:00:22]}
28. Rd6 {[%clk 0:00:27.7]} 28... Qf5 {[%clk 0:00:20.7]} 29. Qxb3 {[%clk
0:00:22.6]} 29... Rc1+ {[%clk 0:00:13.6]} 30. Rd1 {[%clk 0:00:07.9]} 30... Rxd1+
{[%clk 0:00:13.5]} 31. Qxd1 {[%clk 0:00:08.8]} 31... a5 {[%clk 0:00:14.4]} 32.
Qb3 {[%clk 0:00:04]} 32... Qc5 {[%clk 0:00:12.9]} 33. Qe6 {[%clk 0:00:02.9]}
33... Qc1+ {[%clk 0:00:12.7]} 34. Kh2 {[%clk 0:00:02.7]} 34... Qc3 {[%clk
0:00:12.8]} 35. Qxe4 {[%clk 0:00:01.3]} 35... b3 {[%clk 0:00:13.3]} 36. h4
{[%clk 0:00:01.7]} 36... h5 {[%clk 0:00:12.7]} 37. g4 {[%clk 0:00:01.6]} 37...
Qc2 {[%clk 0:00:10.1]} 0-1

[Event "*** SCC Grand Prix: Titled Tuesday Blitz"]
[Site "Chess.com"]
[Date "2020.06.23"]
[Round "10"]
[White "IM_Tissir"]
[Black "Gerasimenyuk_Miha"]
[Result "0-1"]
[WhiteElo "2445"]
[BlackElo "2340"]
[TimeControl "180+1"]
[EndTime "11:57:19 PDT"]
[Termination "Gerasimenyuk_Miha won on time"]

1. e4 {[%clk 0:03:00.9]} 1... d5 {[%clk 0:02:59.2]} 2. Nc3 {[%clk 0:02:58]} 2...
dxe4 {[%clk 0:02:59.2]} 3. Nxe4 {[%clk 0:02:57.3]} 3... Nf6 {[%clk 0:03:00.1]}
4. Ng3 {[%clk 0:02:52.1]} 4... h5 {[%clk 0:02:59.5]} 5. h3 {[%clk 0:02:51.5]}
5... c6 {[%clk 0:03:00.4]} 6. d4 {[%clk 0:02:50.6]} 6... h4 {[%clk 0:03:00.1]}
7. N3e2 {[%clk 0:02:50.4]} 7... Qc7 {[%clk 0:02:59.7]} 8. Bf4 {[%clk 0:02:48.4]}
8... Qb6 {[%clk 0:02:59.4]} 9. Qc1 {[%clk 0:02:44]} 9... Bf5 {[%clk 0:02:56.8]}
10. c3 {[%clk 0:02:43.5]} 10... e6 {[%clk 0:02:56]} 11. Be3 {[%clk 0:02:43.4]}
11... Nd5 {[%clk 0:02:55.3]} 12. Bd2 {[%clk 0:02:42.7]} 12... Nd7 {[%clk
0:02:54.1]} 13. Nf3 {[%clk 0:02:40]} 13... O-O-O {[%clk 0:02:53]} 14. Nf4 {[%clk
0:02:18.9]} 14... e5 {[%clk 0:02:49.4]} 15. Nxd5 {[%clk 0:02:16.9]} 15... cxd5
{[%clk 0:02:50.3]} 16. dxe5 {[%clk 0:02:11.9]} 16... Bc5 {[%clk 0:02:48.5]} 17.
Be3 {[%clk 0:02:09.5]} 17... f6 {[%clk 0:02:44.8]} 18. exf6 {[%clk 0:01:57.9]}
18... Bxe3 {[%clk 0:02:42.9]} 19. fxe3 {[%clk 0:01:57]} 19... Rhe8 {[%clk
0:02:42.8]} 20. Nd4 {[%clk 0:01:47.3]} 20... Qxf6 {[%clk 0:02:34.1]} 21. Bb5
{[%clk 0:01:45.6]} 21... Be4 {[%clk 0:02:29.3]} 22. Qd2 {[%clk 0:01:43.3]} 22...
Nc5 {[%clk 0:02:20.5]} 23. O-O-O {[%clk 0:01:39.4]} 23... a6 {[%clk 0:02:19.9]}
24. Rhf1 {[%clk 0:01:30.3]} 24... Qb6 {[%clk 0:02:14.4]} 25. Be2 {[%clk
0:01:24.3]} 25... Kb8 {[%clk 0:02:03.2]} 26. Rg1 {[%clk 0:00:53.7]} 26... Rc8
{[%clk 0:02:00.9]} 27. Rdf1 {[%clk 0:00:47.9]} 27... Qa5 {[%clk 0:01:57.6]} 28.
b4 {[%clk 0:00:35.9]} 28... Qa3+ {[%clk 0:01:44.4]} 29. Qb2 {[%clk 0:00:29.1]}
29... Qxb2+ {[%clk 0:01:35.2]} 30. Kxb2 {[%clk 0:00:27.3]} 30... Na4+ {[%clk
0:01:36.1]} 31. Kb3 {[%clk 0:00:23.4]} 31... Nxc3 {[%clk 0:01:07.9]} 32. Bg4
{[%clk 0:00:22.2]} 32... Rc7 {[%clk 0:01:03.3]} 33. Rc1 {[%clk 0:00:20.6]} 33...
Nb5 {[%clk 0:00:54.2]} 34. Nxb5 {[%clk 0:00:20.3]} 34... axb5 {[%clk 0:00:53.7]}
35. Rxc7 {[%clk 0:00:19.8]} 35... Kxc7 {[%clk 0:00:54.6]} 36. Rc1+ {[%clk
0:00:20.1]} 36... Kd6 {[%clk 0:00:50.9]} 37. Rc5 {[%clk 0:00:17.5]} 37... Bd3
{[%clk 0:00:50.5]} 38. Kc3 {[%clk 0:00:14.7]} 38... Bc4 {[%clk 0:00:48.6]} 39.
Bf3 {[%clk 0:00:11.9]} 39... Rxe3+ {[%clk 0:00:37.1]} 40. Kd2 {[%clk 0:00:11.4]}
40... Re8 {[%clk 0:00:32.6]} 41. a3 {[%clk 0:00:03.6]} 41... b6 {[%clk
0:00:32.5]} 0-1

[Event "*** SCC Grand Prix: Titled Tuesday Blitz"]
[Site "Chess.com"]
[Date "2020.06.23"]
[Round "10"]
[White "Leonid_Starozhilov"]
[Black "Thej11"]
[Result "1-0"]
[WhiteElo "2716"]
[BlackElo "2532"]
[TimeControl "180+1"]
[EndTime "11:57:20 PDT"]
[Termination "Leonid_Starozhilov won by resignation"]

1. b3 {[%clk 0:03:00.9]} 1... d5 {[%clk 0:02:59.2]} 2. Bb2 {[%clk 0:03:01.2]}
2... Nf6 {[%clk 0:02:59.3]} 3. Nf3 {[%clk 0:03:01.2]} 3... Bf5 {[%clk
0:02:56.8]} 4. e3 {[%clk 0:03:00.4]} 4... e6 {[%clk 0:02:56.1]} 5. Be2 {[%clk
0:03:00.2]} 5... Be7 {[%clk 0:02:54.8]} 6. O-O {[%clk 0:03:00.8]} 6... O-O
{[%clk 0:02:54.1]} 7. c4 {[%clk 0:03:01.3]} 7... c6 {[%clk 0:02:52.1]} 8. Nc3
{[%clk 0:03:00.9]} 8... h6 {[%clk 0:02:50.5]} 9. d4 {[%clk 0:03:00.3]} 9... Nbd7
{[%clk 0:02:49.5]} 10. Rc1 {[%clk 0:02:59.6]} 10... Ne4 {[%clk 0:02:44]} 11. Nd2
{[%clk 0:02:53.3]} 11... Nxc3 {[%clk 0:02:40.7]} 12. Bxc3 {[%clk 0:02:46.7]}
12... Ba3 {[%clk 0:02:38.6]} 13. Ra1 {[%clk 0:02:46.5]} 13... a5 {[%clk
0:02:23.5]} 14. Re1 {[%clk 0:02:24]} 14... Re8 {[%clk 0:02:15.8]} 15. Bf3 {[%clk
0:02:17.9]} 15... Nf6 {[%clk 0:02:10.2]} 16. e4 {[%clk 0:02:15.5]} 16... dxe4
{[%clk 0:02:08.4]} 17. Nxe4 {[%clk 0:02:16.4]} 17... Nxe4 {[%clk 0:02:00.6]} 18.
Bxe4 {[%clk 0:02:17.3]} 18... Bxe4 {[%clk 0:01:56.8]} 19. Rxe4 {[%clk
0:02:18.2]} 19... Qd6 {[%clk 0:01:50.6]} 20. Qe2 {[%clk 0:02:16.7]} 20... Bb4
{[%clk 0:01:48.1]} 21. Rc1 {[%clk 0:01:42.8]} 21... Bxc3 {[%clk 0:01:44.8]} 22.
Rxc3 {[%clk 0:01:43.7]} 22... a4 {[%clk 0:01:43.8]} 23. g3 {[%clk 0:01:44.2]}
23... axb3 {[%clk 0:01:42.3]} 24. axb3 {[%clk 0:01:45.1]} 24... Ra1+ {[%clk
0:01:40]} 25. Kg2 {[%clk 0:01:45]} 25... Rea8 {[%clk 0:01:36.4]} 26. Rd3 {[%clk
0:01:23.1]} 26... R8a2 {[%clk 0:01:30.3]} 27. Rd2 {[%clk 0:01:15]} 27... Ra3
{[%clk 0:01:26]} 28. d5 {[%clk 0:01:05.6]} 28... cxd5 {[%clk 0:01:19.5]} 29.
cxd5 {[%clk 0:01:05.6]} 29... exd5 {[%clk 0:01:18.4]} 30. Re8+ {[%clk
0:00:43.9]} 30... Kh7 {[%clk 0:01:16.6]} 31. Qf3 {[%clk 0:00:40.1]} 31... Qc6
{[%clk 0:01:00.1]} 32. Qxf7 {[%clk 0:00:29.6]} 32... d4+ {[%clk 0:00:39.2]} 33.
f3 {[%clk 0:00:29.4]} 33... Ra6 {[%clk 0:00:31.8]} 34. Rde2 {[%clk 0:00:21.1]}
34... d3 {[%clk 0:00:19.6]} 35. Qg8+ {[%clk 0:00:20.3]} 35... Kg6 {[%clk
0:00:20]} 36. R2e6+ {[%clk 0:00:20.5]} 36... Qxe6 {[%clk 0:00:19.3]} 37. Rxe6+
{[%clk 0:00:21.4]} 37... Rxe6 {[%clk 0:00:19]} 38. Qxe6+ {[%clk 0:00:21.7]} 1-0

[Event "*** SCC Grand Prix: Titled Tuesday Blitz"]
[Site "Chess.com"]
[Date "2020.06.23"]
[Round "10"]
[White "1977Ivan"]
[Black "hansen"]
[Result "1-0"]
[WhiteElo "2674"]
[BlackElo "2954"]
[TimeControl "180+1"]
[EndTime "11:57:21 PDT"]
[Termination "1977Ivan won by resignation"]

1. d4 {[%clk 0:03:00.9]} 1... Nf6 {[%clk 0:02:57.9]} 2. Nc3 {[%clk 0:03:00.9]}
2... d5 {[%clk 0:02:52.8]} 3. Bf4 {[%clk 0:03:01.3]} 3... c6 {[%clk 0:02:50.4]}
4. e3 {[%clk 0:02:55.5]} 4... Bf5 {[%clk 0:02:49.1]} 5. f3 {[%clk 0:02:53.3]}
5... Qb6 {[%clk 0:02:44.5]} 6. g4 {[%clk 0:02:39.1]} 6... Qxb2 {[%clk
0:02:34.7]} 7. Na4 {[%clk 0:02:23.7]} 7... Qa3 {[%clk 0:02:34.1]} 8. c3 {[%clk
0:02:09.4]} 8... b5 {[%clk 0:02:12.1]} 9. gxf5 {[%clk 0:01:50.8]} 9... bxa4
{[%clk 0:02:08.5]} 10. Rb1 {[%clk 0:01:49.5]} 10... Nbd7 {[%clk 0:02:06.1]} 11.
Ba6 {[%clk 0:01:44.7]} 11... Nh5 {[%clk 0:01:49.9]} 12. Bc7 {[%clk 0:01:36.5]}
12... e5 {[%clk 0:01:06.9]} 13. Bb7 {[%clk 0:01:28.7]} 13... Rd8 {[%clk
0:00:47.8]} 14. Bxd8 {[%clk 0:01:25.1]} 14... Kxd8 {[%clk 0:00:47.5]} 15. Ne2
{[%clk 0:01:19]} 15... Kc7 {[%clk 0:00:41.8]} 16. Ba6 {[%clk 0:00:51.3]} 16...
Nb6 {[%clk 0:00:36.6]} 17. Kf2 {[%clk 0:00:42.5]} 17... Bd6 {[%clk 0:00:31.3]}
18. Qc2 {[%clk 0:00:34.1]} 18... g6 {[%clk 0:00:29.3]} 19. c4 {[%clk 0:00:30]}
19... exd4 {[%clk 0:00:25.6]} 20. Nxd4 {[%clk 0:00:27.3]} 20... Re8 {[%clk
0:00:23.5]} 21. Rhe1 {[%clk 0:00:22.3]} 21... dxc4 {[%clk 0:00:10.6]} 22. Bxc4
{[%clk 0:00:20.1]} 22... Qc5 {[%clk 0:00:09.9]} 23. Bxf7 {[%clk 0:00:16]} 23...
Qxc2+ {[%clk 0:00:09.4]} 24. Nxc2 {[%clk 0:00:16.2]} 24... Rf8 {[%clk
0:00:08.1]} 25. fxg6 {[%clk 0:00:16.3]} 25... hxg6 {[%clk 0:00:08.7]} 26. Bxg6
{[%clk 0:00:16.1]} 26... Nf6 {[%clk 0:00:07.8]} 27. h4 {[%clk 0:00:14.4]} 27...
Nc4 {[%clk 0:00:04.8]} 28. Ke2 {[%clk 0:00:13.7]} 28... Bc5 {[%clk 0:00:02.4]}
29. h5 {[%clk 0:00:13.4]} 29... Ne5 {[%clk 0:00:02.6]} 30. Red1 {[%clk
0:00:11.5]} 30... Nd5 {[%clk 0:00:02.3]} 31. Nd4 {[%clk 0:00:11.5]} 31... Nc3+
{[%clk 0:00:02.4]} 32. Kf2 {[%clk 0:00:10.8]} 32... Bxd4 {[%clk 0:00:02.1]} 33.
Rxd4 {[%clk 0:00:09.8]} 33... Nxf3 {[%clk 0:00:01.3]} 34. Rf4 {[%clk 0:00:08.9]}
34... Rxf4 {[%clk 0:00:01.4]} 35. exf4 {[%clk 0:00:09]} 35... Nh4 {[%clk
0:00:01.7]} 36. Bd3 {[%clk 0:00:07.3]} 36... Nxb1 {[%clk 0:00:01.5]} 37. Bxb1
{[%clk 0:00:06.8]} 37... Kd6 {[%clk 0:00:02]} 38. Kg3 {[%clk 0:00:06.2]} 1-0

[Event "*** SCC Grand Prix: Titled Tuesday Blitz"]
[Site "Chess.com"]
[Date "2020.06.23"]
[Round "10"]
[White "kushagramohan"]
[Black "zaur-mammadov"]
[Result "1-0"]
[WhiteElo "2727"]
[BlackElo "2605"]
[TimeControl "180+1"]
[EndTime "11:57:21 PDT"]
[Termination "kushagramohan won by resignation"]

1. e4 {[%clk 0:03:00.9]} 1... e6 {[%clk 0:02:54.8]} 2. d4 {[%clk 0:03:00.7]}
2... d5 {[%clk 0:02:54.4]} 3. Nd2 {[%clk 0:03:01.3]} 3... Be7 {[%clk 0:02:53.6]}
4. c3 {[%clk 0:02:59.1]} 4... c5 {[%clk 0:02:52.9]} 5. e5 {[%clk 0:02:59.2]}
5... Nc6 {[%clk 0:02:52.1]} 6. Bd3 {[%clk 0:02:59.8]} 6... cxd4 {[%clk
0:02:50.3]} 7. cxd4 {[%clk 0:02:59.6]} 7... Qb6 {[%clk 0:02:50.2]} 8. Ndf3
{[%clk 0:02:57]} 8... Bd7 {[%clk 0:02:49.3]} 9. Ne2 {[%clk 0:02:51.1]} 9... Nh6
{[%clk 0:02:48.7]} 10. Bxh6 {[%clk 0:02:48.4]} 10... gxh6 {[%clk 0:02:49.1]} 11.
O-O {[%clk 0:02:48.8]} 11... Rc8 {[%clk 0:02:39]} 12. Qd2 {[%clk 0:02:42]} 12...
Bf8 {[%clk 0:02:36.8]} 13. a3 {[%clk 0:02:33.6]} 13... a5 {[%clk 0:02:35.6]} 14.
Rac1 {[%clk 0:02:28.4]} 14... Bg7 {[%clk 0:02:34.8]} 15. Bb1 {[%clk 0:02:24.8]}
15... a4 {[%clk 0:02:32]} 16. Nf4 {[%clk 0:02:21.4]} 16... Ne7 {[%clk 0:02:01]}
17. Nh5 {[%clk 0:02:06.1]} 17... Bf8 {[%clk 0:01:58.5]} 18. Nf6+ {[%clk
0:01:59.3]} 18... Kd8 {[%clk 0:01:58.6]} 19. Rxc8+ {[%clk 0:01:47.9]} 19... Bxc8
{[%clk 0:01:57.1]} 20. Qc2 {[%clk 0:01:42.4]} 20... Nc6 {[%clk 0:01:48]} 21. h3
{[%clk 0:01:18.1]} 21... Be7 {[%clk 0:01:45.4]} 22. Nxh7 {[%clk 0:01:11.2]}
22... Nxd4 {[%clk 0:01:24.1]} 23. Nxd4 {[%clk 0:01:11]} 23... Qxd4 {[%clk
0:01:25]} 24. Rc1 {[%clk 0:01:11.7]} 24... Qc4 {[%clk 0:01:24.2]} 25. Qd2 {[%clk
0:00:57.9]} 25... Qb5 {[%clk 0:01:11]} 26. Bd3 {[%clk 0:00:57.7]} 26... Qb6
{[%clk 0:01:09]} 27. Rc2 {[%clk 0:00:39.4]} 27... Bd7 {[%clk 0:01:00.6]} 28.
Qxh6 {[%clk 0:00:38.4]} 28... Qb3 {[%clk 0:01:01.1]} 29. Qd2 {[%clk 0:00:38.3]}
29... Bc6 {[%clk 0:00:52.7]} 30. Ng5 {[%clk 0:00:36.1]} 30... Rf8 {[%clk
0:00:46]} 31. Nf3 {[%clk 0:00:36]} 31... Qb6 {[%clk 0:00:45.7]} 32. h4 {[%clk
0:00:33.5]} 32... Kd7 {[%clk 0:00:45.6]} 33. h5 {[%clk 0:00:33.4]} 33... d4
{[%clk 0:00:31.1]} 34. Qf4 {[%clk 0:00:32.8]} 34... Rg8 {[%clk 0:00:20.5]} 35.
h6 {[%clk 0:00:27.1]} 35... Bxf3 {[%clk 0:00:19.7]} 36. Qxf3 {[%clk 0:00:25.8]}
36... Qb3 {[%clk 0:00:17.2]} 37. h7 {[%clk 0:00:20]} 37... Rh8 {[%clk
0:00:17.4]} 38. Qe4 {[%clk 0:00:19.2]} 38... Qb6 {[%clk 0:00:13.6]} 39. Qf4
{[%clk 0:00:18.4]} 39... Qb3 {[%clk 0:00:13.2]} 40. Qxd4+ {[%clk 0:00:13.3]}
40... Qd5 {[%clk 0:00:13.8]} 41. Qxd5+ {[%clk 0:00:12.4]} 41... exd5 {[%clk
0:00:14.7]} 42. Bf5+ {[%clk 0:00:13.1]} 1-0

[Event "*** SCC Grand Prix: Titled Tuesday Blitz"]
[Site "Chess.com"]
[Date "2020.06.23"]
[Round "10"]
[White "LuckIsMySkill"]
[Black "Kildepiotr"]
[Result "1-0"]
[WhiteElo "2724"]
[BlackElo "2600"]
[TimeControl "180+1"]
[EndTime "11:57:21 PDT"]
[Termination "LuckIsMySkill won by resignation"]

1. Nf3 {[%clk 0:03:00.9]} 1... g6 {[%clk 0:02:59.7]} 2. c4 {[%clk 0:03:01.5]}
2... Bg7 {[%clk 0:02:59.4]} 3. Nc3 {[%clk 0:03:02.4]} 3... c6 {[%clk 0:02:57.1]}
4. d4 {[%clk 0:03:01.7]} 4... d6 {[%clk 0:02:53.8]} 5. b4 {[%clk 0:02:53.1]}
5... Nf6 {[%clk 0:02:49.1]} 6. Bb2 {[%clk 0:02:52.3]} 6... O-O {[%clk
0:02:48.9]} 7. e3 {[%clk 0:02:52.4]} 7... Nbd7 {[%clk 0:02:48.1]} 8. a4 {[%clk
0:02:51.5]} 8... e5 {[%clk 0:02:48]} 9. b5 {[%clk 0:02:51.5]} 9... Qe7 {[%clk
0:02:43.4]} 10. Be2 {[%clk 0:02:48.7]} 10... e4 {[%clk 0:02:40.9]} 11. Nd2
{[%clk 0:02:48]} 11... Re8 {[%clk 0:02:40.7]} 12. a5 {[%clk 0:02:46.7]} 12... c5
{[%clk 0:02:40.1]} 13. Nb3 {[%clk 0:02:40.3]} 13... h5 {[%clk 0:02:36.6]} 14.
O-O {[%clk 0:02:28.5]} 14... Nf8 {[%clk 0:02:30.6]} 15. Ba3 {[%clk 0:02:13.9]}
15... b6 {[%clk 0:02:16.2]} 16. axb6 {[%clk 0:02:04.9]} 16... axb6 {[%clk
0:02:15.2]} 17. dxc5 {[%clk 0:02:05]} 17... bxc5 {[%clk 0:02:14.5]} 18. Bb2
{[%clk 0:02:03.4]} 18... Bg4 {[%clk 0:02:05.4]} 19. Na5 {[%clk 0:01:57]} 19...
Ne6 {[%clk 0:01:39.5]} 20. h3 {[%clk 0:01:49.7]} 20... Bxe2 {[%clk 0:01:39.3]}
21. Qxe2 {[%clk 0:01:50.5]} 21... Qc7 {[%clk 0:01:31.9]} 22. Nc6 {[%clk
0:01:48]} 22... Qb7 {[%clk 0:01:27.3]} 23. Qd2 {[%clk 0:01:28.3]} 23... Qd7
{[%clk 0:01:13.8]} 24. Nd5 {[%clk 0:01:16.3]} 24... Nxd5 {[%clk 0:01:11.3]} 25.
cxd5 {[%clk 0:01:17.2]} 25... Nf8 {[%clk 0:00:40.1]} 26. Bxg7 {[%clk 0:01:13.9]}
26... Kxg7 {[%clk 0:00:41]} 27. Qb2+ {[%clk 0:01:03.8]} 27... f6 {[%clk
0:00:34.6]} 28. Rxa8 {[%clk 0:00:47.4]} 28... Rxa8 {[%clk 0:00:33.9]} 29. Ra1
{[%clk 0:00:48.3]} 29... Rxa1+ {[%clk 0:00:27.7]} 30. Qxa1 {[%clk 0:00:49.2]}
30... Qb7 {[%clk 0:00:27.5]} 31. Qa6 {[%clk 0:00:48.5]} 31... Qxa6 {[%clk
0:00:22.7]} 32. bxa6 {[%clk 0:00:49.4]} 32... Nd7 {[%clk 0:00:23.1]} 33. Na5
{[%clk 0:00:47.1]} 33... Nb6 {[%clk 0:00:19.5]} 34. a7 {[%clk 0:00:46.4]} 34...
f5 {[%clk 0:00:14.9]} 35. Nc4 {[%clk 0:00:39.2]} 35... Na8 {[%clk 0:00:14.9]}
36. Nxd6 {[%clk 0:00:35.3]} 36... Kf6 {[%clk 0:00:15.7]} 37. Nc4 {[%clk
0:00:31.3]} 37... Ke7 {[%clk 0:00:15.7]} 38. g4 {[%clk 0:00:30.9]} 38... hxg4
{[%clk 0:00:15.1]} 39. hxg4 {[%clk 0:00:30.8]} 39... Kd7 {[%clk 0:00:14]} 40.
Kg2 {[%clk 0:00:24.3]} 40... Kc7 {[%clk 0:00:13.5]} 41. d6+ {[%clk 0:00:23.2]}
41... Kc6 {[%clk 0:00:11]} 42. Kg3 {[%clk 0:00:21.9]} 1-0